bitfinex-derivatives/quotes_SOLF0:USTF0_20250720
["timestamp","ask_amount","ask_price","bid_price","bid_amount"]
[1753043661765,3.22,181.58,181.57,3.23]
[1753043661969,3.22,181.58,181.47,4.62287843]
[1753043662166,3.22,181.58,181.55,3.23]
[1753043662363,5.5049,181.58,181.55,3.23]
[1753043662661,3.22,181.56,181.54,5.5058]
[1753043663362,3.22,181.56,181.55,3.23]
[1753043664261,3.22,181.56,181.55,5.5056]
[1753043664461,3.22,181.56,181.55,8.7356]
[1753043665766,3.22,181.58,181.56,5.5053]
[1753043665963,3.22,181.58,181.57,3.23]
[1753043666368,3.22,181.57,181.55,3.23]
[1753043666868,3.22,181.56,181.54,5.5058]
[1753043667168,3.22,181.55,181.5,2.68482077]
[1753043667369,2.68482077,181.58,181.5,2.68482077]
[1753043667564,3.22,181.54,181.52,5.5066]
[1753043667769,3.22,181.54,181.53,3.23]
[1753043670872,3.22,181.54,181.53,8.7363]
[1753043671067,3.22,181.56,181.53,3.23]
[1753043671370,3.22,181.55,181.53,3.23]
[1753043671570,3.22,181.54,181.51,3.23]
[1753043671768,3.22,181.53,181.51,3.23]
[1753043673076,3.22,181.53,181.52,8.7363]
[1753043674474,3.22,181.53,181.51,3.23]
[1753043675577,3.22,181.53,181.51,8.7368]
[1753043676372,5.5064,181.53,181.5,8.7372]
[1753043676574,3.22,181.52,181.5,8.7372]
[1753043677169,3.22,181.51,181.5,3.23]
[1753043677869,3.22,181.51,181.5,8.7372]
[1753043680674,3.22,181.51,181.5,3.23]
[1753043680871,3.22,181.51,181.46,3.23]
[1753043681072,5.90482077,181.51,181.47,3.23]
[1753043681276,3.22,181.5,181.47,3.23]
[1753043681478,3.22,181.48,181.47,3.23]
[1753043682170,3.22,181.47,181.45,3.23]
[1753043682379,3.22,181.47,181.43,3.23]
[1753043682578,3.22,181.47,181.44,3.23]
[1753043682778,8.7283,181.47,181.44,3.23]
[1753043682978,3.22,181.46,181.44,3.23]
[1753043683478,5.5079,181.48,181.44,5.509]
[1753043683676,3.22,181.47,181.45,3.23]
[1753043684069,3.22,181.46,181.45,5.5087]
[1753043684671,3.22,181.46,181.45,8.7387]
[1753043685573,90.43696398,181.57,181.47,3.23]
[1753043685778,3.22,181.5,181.47,3.23]
[1753043686179,3.22,181.5,181.48,5.5077]
[1753043686379,3.22,181.5,181.49,3.23]
[1753043688376,3.22,181.52,181.49,3.23]
[1753043689178,3.22,181.52,181.5,5.5072]
[1753043689378,3.22,181.52,181.51,3.23]
[1753043689875,3.22,181.52,181.51,8.7369]
[1753043690278,3.22,181.54,181.52,3.23]
[1753043690577,84.31826381,181.57,181.53,3.23]
[1753043690773,3.22,181.55,181.53,3.23]
[1753043691081,3.22,181.55,181.54,3.23]
[1753043693879,3.22,181.55,181.51,3.23]
[1753043694082,3.22,181.55,181.49,3.23]
[1753043694083,3.22,181.54,181.49,3.23]
[1753043694277,5.5068,181.52,181.49,3.23]
[1753043694481,3.22,181.51,181.49,3.23]
[1753043695181,8.7269,181.51,181.49,3.23]
[1753043695382,3.22,181.5,181.49,3.23]
[1753043697778,3.22,181.49,181.46,101.86]
[1753043697986,3.22,181.49,181.46,105.09]
[1753043698179,3.16,181.47,181.46,105.09]
[1753043698385,3.16,181.47,181.46,101.86]
[1753043699188,3.16,181.47,181.46,105.08]
[1753043702190,8.6681,181.47,181.46,105.08]
[1753043702488,5.5081,181.47,181.44,3.22]
[1753043702694,3.16,181.46,181.44,3.22]
[1753043703093,3.16,181.45,181.42,105.06]
[1753043703294,3.16,181.46,181.43,3.22]
[1753043704592,3.16,181.45,181.43,8.7293]
[1753043704791,3.16,181.44,181.43,8.7293]
[1753043705989,82.35550545,181.55,181.45,8.7285]
[1753043705990,3.16,181.46,181.45,8.7285]
[1753043708400,3.16,181.48,181.45,3.22]
[1753043709000,2.68482077,181.51,181.45,3.22]
[1753043709001,3.16,181.5,181.45,3.22]
[1753043709206,3.16,181.49,181.45,3.22]
[1753043709598,3.16,181.5,181.48,3.22]
[1753043709796,82.35550545,181.55,181.48,5.90482077]
[1753043709797,3.16,181.54,181.48,5.90482077]
[1753043710003,3.56869982,181.53,181.51,5.5067]
[1753043710199,3.56869982,181.52,181.51,5.5067]
[1753043710398,3.16,181.53,181.51,5.5067]
[1753043710694,87.86140545,181.55,181.52,3.22]
[1753043710898,6.7300338,181.54,181.49,3.22]
[1753043711095,82.35550545,181.55,181.52,5.5066]
[1753043711301,6.73018376,181.54,181.53,3.22]
[1753043712997,3.57018376,181.54,181.53,8.7263]
[1753043714104,6.73018376,181.54,181.53,8.7263]
[1753043715193,3.57018376,181.54,181.53,8.7263]
[1753043715596,3.16,181.56,181.53,8.7263]
[1753043715799,6.73196849,181.55,181.54,3.22]
[1753043718508,3.16,181.54,181.5,3.22]
[1753043718710,3.16,181.52,181.47,3.22]
[1753043719010,3.16,181.49,181.47,3.22]
[1753043719697,3.16,181.48,181.47,3.22]
[1753043720208,3.16,181.48,181.47,8.7281]
[1753043720405,3.16,181.51,181.48,3.22]
[1753043720608,6.73006782,181.5,181.45,101.76]
[1753043720809,3.16,181.49,181.45,101.76]
[1753043721005,5.5077,181.49,181.45,101.76]
[1753043721212,3.16,181.48,181.47,3.22]
[1753043722814,3.16,181.49,181.48,3.22]
[1753043724312,3.16,181.48,181.45,107.2686]
[1753043724607,3.16,181.48,181.46,3.22]
[1753043724808,3.16,181.48,181.44,107.2289]
[1753043725007,3.16,181.48,181.45,3.22]
[1753043725507,3.16,181.46,181.45,3.22]
[1753043726507,3.16,181.46,181.43,3.22]
[1753043726708,3.16,181.45,181.44,8.729]
[1753043727110,3.16,181.45,181.44,3.22]
[1753043728710,2.68482077,181.49,181.44,5.509]
[1753043729018,3.02,181.47,181.45,3.1]
[1753043729812,3.02,181.47,181.46,3.1]
[1753043730209,3.02,181.47,181.45,3.1]
[1753043730620,3.02,181.46,181.44,5.509]
[1753043731119,3.02,181.46,181.45,3.1]
[1753043731618,3.02,181.52,181.45,3.1]
[1753043731919,5.5074,181.5,181.46,5.5082]
[1753043732115,3.02,181.49,181.46,5.5082]
[1753043732417,3.02,181.49,181.48,3.1]
[1753043733313,3.02,181.52,181.48,5.5078]
[1753043733520,6.60136686,181.51,181.49,3.1]
[1753043733720,3.02,181.51,181.49,3.1]
[1753043733912,3.02,181.51,181.5,3.1]
[1753043734112,3.58144095,181.51,181.47,3.1]
[1753043734317,3.5814016,181.5,181.46,101.68]
[1753043734518,3.02,181.49,181.48,3.1]
[1753043735016,3.02,181.49,181.48,8.6077]
[1753043736523,3.02,181.49,181.48,3.1]
[1753043739616,3.02,181.49,181.48,8.6078]
[1753043740022,3.02,181.49,181.48,3.1]
[1753043745024,8.5275,181.49,181.48,3.1]
[1753043745428,3.02,181.49,181.48,3.1]
[1753043747929,3.02,181.49,181.48,8.6078]
[1753043748330,8.5275,181.49,181.48,3.1]
[1753043749532,3.02,181.49,181.48,3.1]
[1753043750432,3.02,181.49,181.48,8.6078]
[1753043759539,3.06,181.53,181.52,5.5064]
[1753043759735,3.06,181.53,181.52,8.4764]
[1753043760941,3.06,181.56,181.53,2.97]
[1753043761528,5.5056,181.56,181.54,2.97]
[1753043761734,3.06,181.55,181.54,2.97]
[1753043762337,3.06,181.55,181.54,8.476]
[1753043762535,3.06,181.56,181.54,2.97]
[1753043762845,3.06,181.56,181.55,5.5056]
[1753043763036,3.06,181.56,181.55,8.4756]
[1753043763340,5.5057,181.55,181.53,2.97]
[1753043763533,3.06,181.54,181.53,2.97]
[1753043763942,3.06,181.54,181.53,8.4763]
[1753043765240,3.06,181.54,181.53,2.97]
[1753043765841,3.06,181.54,181.53,8.4763]
[1753043767642,82.39422134,181.58,181.54,5.506]
[1753043767643,3.06,181.57,181.54,5.506]
[1753043767848,3.06,181.57,181.55,2.97]
[1753043768045,3.06,181.56,181.55,2.97]
[1753043768245,87.89932134,181.58,181.55,8.4755]
[1753043768446,3.06,181.57,181.55,8.4755]
[1753043768746,3.06,181.57,181.56,2.97]
[1753043769347,3.06,181.59,181.56,2.97]
[1753043769644,3.06,181.58,181.56,2.97]
[1753043769849,3.06,181.58,181.57,5.5051]
[1753043770047,3.06,181.58,181.57,8.4751]
[1753043770744,5.5042,181.6,181.59,2.97]
[1753043771250,8.5642,181.6,181.59,2.97]
[1753043771451,3.06,181.6,181.59,2.97]
[1753043772049,5.5035,181.63,181.55,2.68482077]
[1753043772346,3.06,181.63,181.58,2.97]
[1753043773246,5.5035,181.63,181.57,2.68482077]
[1753043773544,3.06,181.62,181.61,2.97]
[1753043774253,3.06,181.62,181.61,8.4739]
[1753043775049,3.06,181.62,181.57,2.97]
[1753043775552,5.5034,181.63,181.57,2.97]
[1753043775748,3.06,181.61,181.57,2.97]
[1753043776747,3.06,181.6,181.59,2.97]
[1753043777153,3.06,181.6,181.57,8.4749]
[1753043777353,3.06,181.6,181.58,2.97]
[1753043778352,3.06,181.6,181.58,8.4747]
[1753043778649,3.06,181.6,181.58,2.97]
[1753043778952,3.06,181.6,181.57,2.97]
[1753043779455,3.06,181.59,181.57,2.97]
[1753043779653,3.06,181.59,181.58,2.97]
[1753043780353,5.5044,181.6,181.58,2.97]
[1753043780354,3.06,181.61,181.58,2.97]
[1753043780551,2.68482077,181.67,181.6,2.97]
[1753043780858,5.5029,181.65,181.6,2.97]
[1753043781155,3.06,181.64,181.62,5.5035]
[1753043781351,3.06,181.64,181.62,8.4735]
[1753043785157,3.06,181.64,181.59,2.68482077]
[1753043785158,3.06,181.65,181.63,5.5033]
[1753043785353,3.06,181.65,181.6,2.97]
[1753043786462,3.06,181.64,181.62,8.4734]
[1753043786764,3.06,181.64,181.63,2.97]
[1753043786962,3.06,181.64,181.63,8.4733]
[1753043791970,3.04,181.68,181.62,3.25]
[1753043792162,5.5023,181.67,181.62,3.25]
[1753043792462,3.04,181.66,181.62,3.25]
[1753043792664,3.04,181.66,181.6,3.25]
[1753043792865,3.04,181.64,181.6,3.25]
[1753043793269,3.04,181.63,181.6,3.25]
[1753043793771,3.04,181.63,181.59,2.68482077]
[1753043793772,3.04,181.63,181.62,5.5033]
[1753043794070,3.04,181.63,181.62,8.7533]
[1753043794674,3.04,181.62,181.56,3.25]
[1753043794969,5.5053,181.57,181.54,8.7558]
[1753043795169,3.04,181.56,181.5,3.25]
[1753043795568,5.5059,181.55,181.52,5.5064]
[1753043795772,3.04,181.54,181.52,8.7564]
[1753043796675,3.04,181.54,181.51,5.5069]
[1753043796878,3.04,181.53,181.51,8.7569]
[1753043797472,3.04,181.52,181.51,3.25]
[1753043797779,3.04,181.52,181.49,3.25]
[1753043798072,5.5072,181.51,181.49,3.25]
[1753043798273,3.04,181.5,181.49,3.25]
[1753043798671,3.04,181.5,181.47,5.5081]
[1753043798672,5.5072,181.5,181.47,5.5081]
[1753043798877,3.04,181.49,181.46,104.45]
[1753043799078,3.04,181.49,181.47,3.25]
[1753043799678,8.5476,181.49,181.47,3.25]
[1753043799885,3.04,181.48,181.46,3.25]
[1753043800882,5.5084,181.47,181.44,3.25]
[1753043801078,3.04,181.48,181.44,3.25]
[1753043801079,3.04,181.46,181.44,3.25]
[1753043801477,3.04,181.47,181.45,3.25]
[1753043801676,3.04,181.46,181.45,3.25]
[1753043803386,84.41728128,181.57,181.45,3.25]
[1753043803582,3.04,181.5,181.45,3.25]
[1753043804678,84.41728128,181.57,181.45,3.25]
[1753043804975,3.04,181.52,181.51,3.25]
[1753043806588,3.04,181.51,181.49,3.25]
[1753043806788,3.04,181.51,181.5,3.25]
[1753043810482,3.04,181.54,181.47,3.25]
[1753043810890,3.04,181.54,181.49,3.25]
[1753043811090,3.04,181.56,181.49,3.25]
[1753043811388,3.04,181.56,181.5,5.5071]
[1753043811590,3.04,181.56,181.52,3.25]
[1753043813088,3.04,181.54,181.52,3.25]
[1753043815290,3.04,181.53,181.52,3.25]
[1753043817394,3.04,181.53,181.5,3.25]
[1753043817590,3.04,181.53,181.46,2.68482077]
[1753043817894,3.04,181.53,181.47,3.25]
[1753043818194,3.04,181.53,181.49,5.5075]
[1753043818789,3.04,181.53,181.51,3.1]
[1753043819698,5.5062,181.54,181.51,3.1]
[1753043819898,3.24,181.52,181.51,3.1]
[1753043823995,2.68482077,181.55,181.49,3.1]
[1753043824300,3.24,181.5,181.42,3.1]
[1753043824502,3.24,181.48,181.42,3.1]
[1753043825192,3.24,181.47,181.45,3.1]
[1753043825997,2.68482077,181.49,181.45,3.1]
[1753043825998,3.24,181.46,181.45,3.1]
[1753043828304,3.24,181.49,181.45,3.1]
[1753043828797,2.68482077,181.51,181.45,3.1]
[1753043829003,3.24,181.48,181.47,3.1]
[1753043836107,3.24,181.47,181.43,3.1]
[1753043836307,3.24,181.46,181.43,3.1]
[1753043836505,3.24,181.46,181.44,5.5091]
[1753043836708,3.24,181.46,181.45,3.1]
[1753043837812,3.24,181.46,181.45,8.6088]
[1753043840109,3.24,181.49,181.48,3.1]
[1753043840310,3.24,181.51,181.48,3.1]
[1753043840507,3.24,181.53,181.48,3.1]
[1753043840805,3.24,181.52,181.48,3.1]
[1753043841207,3.24,181.52,181.51,3.1]
[1753043841406,3.24,181.53,181.51,3.1]
[1753043842404,3.24,181.52,181.46,3.1]
[1753043843312,2.68482077,181.53,181.48,3.1]
[1753043843313,3.24,181.5,181.48,3.1]
[1753043844404,3.24,181.5,181.47,5.5081]
[1753043844607,3.24,181.5,181.49,3.1]
[1753043848116,3.21,181.52,181.49,3.1]
[1753043848612,3.21,181.51,181.5,3.22]
[1753043849713,3.21,181.53,181.51,3.22]
[1753043850604,3.21,181.53,181.52,3.22]
[1753043850909,3.21,181.54,181.53,3.22]
[1753043851813,8.7161,181.54,181.53,3.22]
[1753043854916,3.21,181.54,181.53,3.22]
[1753043855515,8.716,181.54,181.53,3.22]
[1753043856415,3.21,181.54,181.53,3.22]
[1753043857416,8.716,181.54,181.53,3.22]
[1753043857818,3.21,181.54,181.53,3.22]
[1753043858007,3.21,181.54,181.53,8.7263]
[1753043858212,3.21,181.58,181.53,3.22]
[1753043859116,3.21,181.58,181.57,3.22]
[1753043861612,3.21,181.58,181.57,8.7251]
[1753043861821,8.7143,181.6,181.57,8.7251]
[1753043862115,3.21,181.59,181.58,3.22]
[1753043863111,2.68482077,181.65,181.58,3.22]
[1753043863317,3.21,181.62,181.58,3.22]
[1753043863716,3.21,181.63,181.61,3.22]
[1753043863917,3.21,181.62,181.61,3.22]
[1753043864418,3.21,181.63,181.61,3.22]
[1753043865326,3.21,181.63,181.62,5.5036]
[1753043865522,3.21,181.63,181.62,8.7236]
[1753043867620,3.21,181.66,181.63,5.5032]
[1753043867824,3.21,181.66,181.6,2.68482077]
[1753043867825,3.21,181.66,181.65,3.22]
[1753043868024,3.21,181.66,181.59,2.68482077]
[1753043868225,3.21,181.65,181.64,3.22]
[1753043868528,3.21,181.65,181.59,2.68482077]
[1753043868832,3.21,181.68,181.59,2.68482077]
[1753043869326,5.5021,181.67,181.63,5.503]
[1753043869526,3.21,181.66,181.64,3.22]
[1753043870127,3.21,181.65,181.64,3.22]
[1753043870728,3.21,181.65,181.64,8.723]
[1753043871630,3.21,181.68,181.65,5.5027]
[1753043871936,3.21,181.68,181.66,3.22]
[1753043872437,3.21,181.67,181.66,3.22]
[1753043873636,3.21,181.67,181.65,8.7227]
[1753043874139,3.21,181.67,181.65,3.22]
[1753043874339,3.21,181.65,181.63,3.22]
[1753043874539,2.68482077,181.69,181.59,2.68482077]
[1753043874835,5.5022,181.67,181.64,3.22]
[1753043875042,3.21,181.68,181.64,3.22]
[1753043875437,3.21,181.66,181.64,3.22]
[1753043875940,3.21,181.66,181.64,8.723]
[1753043876143,3.21,181.66,181.64,5.503]
[1753043876337,3.21,181.66,181.65,3.22]
[1753043877641,3.21,181.66,181.63,8.7232]
[1753043877839,3.21,181.66,181.64,3.22]
[1753043879340,3.21,181.66,181.64,8.7229]
[1753043879740,3.21,181.66,181.65,3.08]
[1753043881042,3.21,181.66,181.64,3.08]
[1753043882444,3.21,181.66,181.65,3.08]
[1753043882646,3.15,181.68,181.65,3.08]
[1753043882945,3.15,181.7,181.65,5.76482077]
[1753043883144,3.15,181.7,181.68,5.5016]
[1753043883346,3.15,181.7,181.69,3.08]
[1753043884446,3.15,181.7,181.68,3.08]
[1753043885749,3.15,181.7,181.67,3.08]
[1753043885750,3.15,181.69,181.67,3.08]
[1753043886848,8.18582077,181.71,181.67,5.502]
[1753043887045,3.15,181.68,181.67,5.502]
[1753043887543,3.15,181.68,181.67,3.08]
[1753043892448,2.68482077,181.71,181.67,3.08]
[1753043892449,3.15,181.71,181.67,3.08]
[1753043892846,8.6517,181.69,181.65,8.5826]
[1753043893152,3.15,181.68,181.66,3.08]
[1753043893351,3.15,181.68,181.66,8.5824]
[1753043894052,3.15,181.68,181.66,3.08]
[1753043894752,3.15,181.68,181.66,8.5824]
[1753043896249,3.15,181.68,181.67,3.08]
[1753043896548,3.15,181.68,181.59,11.0091]
[1753043896549,5.5021,181.67,181.63,5.5032]
[1753043896845,3.15,181.66,181.63,5.5032]
[1753043897153,3.15,181.65,181.63,3.08]
[1753043897650,3.15,181.65,181.62,5.5035]
[1753043897852,5.5027,181.65,181.63,3.08]
[1753043898045,3.15,181.64,181.59,2.68482077]
[1753043898446,3.15,181.64,181.6,3.08]
[1753043898750,3.15,181.67,181.6,3.08]
[1753043898952,5.5024,181.66,181.63,5.5033]
[1753043899154,5.5024,181.66,181.55,101.06]
[1753043899155,3.15,181.67,181.64,3.08]
[1753043900246,3.15,181.67,181.66,3.08]
[1753043903955,3.15,181.67,181.66,8.5824]
[1753043904950,3.15,181.69,181.66,3.08]
[1753043905561,3.15,181.71,181.66,3.08]
[1753043906250,3.15,181.71,181.65,2.68482077]
[1753043906451,3.15,181.71,181.69,3.08]
[1753043906648,5.5003,181.73,181.7,3.08]
[1753043906649,3.15,181.73,181.7,3.08]
[1753043907053,3.15,181.72,181.7,3.08]
[1753043907249,3.15,181.71,181.7,3.08]
[1753043908557,3.15,181.71,181.61,2.68482077]
[1753043908855,3.07,181.68,181.65,3.1]
[1753043909358,3.07,181.68,181.61,2.68482077]
[1753043909560,3.07,181.68,181.62,3.1]
[1753043910357,3.07,181.68,181.64,3.1]
[1753043910559,5.5013,181.7,181.67,3.1]
[1753043910758,3.07,181.69,181.67,3.1]
[1753043911453,8.5715,181.69,181.67,3.1]
[1753043911652,8.5715,181.69,181.68,3.1]
[1753043913761,3.07,181.69,181.68,3.1]
[1753043914259,8.5715,181.69,181.68,3.1]
[1753043915650,3.07,181.69,181.63,2.68482077]
[1753043915854,3.07,181.69,181.66,3.1]
[1753043916752,5.75482077,181.69,181.62,3.1]
[1753043916958,3.07,181.68,181.62,3.1]
[1753043917161,5.5026,181.66,181.62,8.6035]
[1753043917357,5.5026,181.66,181.62,5.5035]
[1753043917559,3.07,181.64,181.62,5.5035]
[1753043917763,3.07,181.64,181.61,5.5038]
[1753043918062,3.07,181.66,181.62,3.1]
[1753043918252,3.07,181.61,181.59,3.1]
[1753043918455,3.07,181.6,181.57,2.68482077]
[1753043918962,3.07,181.64,181.58,3.1]
[1753043919564,8.5731,181.64,181.58,3.1]
[1753043919962,5.5034,181.63,181.6,5.504]
[1753043920156,8.5734,181.63,181.61,3.1]
[1753043920361,3.07,181.63,181.57,2.68482077]
[1753043920661,8.5733,181.63,181.62,3.1]
[1753043921764,3.07,181.61,181.6,3.1]
[1753043922165,5.5038,181.62,181.6,3.1]
[1753043922364,3.07,181.64,181.6,3.1]
[1753043922557,2.68482077,181.71,181.6,3.1]
[1753043922769,5.5032,181.64,181.6,8.6041]
[1753043922962,3.07,181.65,181.61,3.1]
[1753043923357,5.5033,181.64,181.61,3.1]
[1753043923559,5.5033,181.64,181.61,5.5038]
[1753043923754,3.07,181.66,181.62,3.1]
[1753043923954,5.5028,181.65,181.62,3.1]
[1753043924360,3.07,181.65,181.62,3.1]
[1753043924560,11.0008,181.73,181.62,3.1]
[1753043924561,3.07,181.68,181.62,3.1]
[1753043924862,3.07,181.68,181.64,3.1]
[1753043925164,2.68482077,181.69,181.64,3.1]
[1753043925360,3.07,181.69,181.62,3.1]
[1753043925764,3.07,181.68,181.65,8.6026]
[1753043925965,3.07,181.68,181.61,2.68482077]
[1753043926162,3.07,181.68,181.66,3.1]
[1753043926362,5.502,181.68,181.65,3.1]
[1753043927065,3.07,181.67,181.62,3.1]
[1753043927563,90.12411073,181.77,181.64,3.1]
[1753043927564,3.07,181.68,181.64,3.1]
[1753043927963,2.68482077,181.71,181.64,3.1]
[1753043928365,3.07,181.7,181.64,3.1]
[1753043929460,2.68482077,181.69,181.6,5.78482077]
[1753043929664,3.07,181.68,181.61,3.1]
[1753043929965,3.07,181.63,181.62,3.1]
[1753043930663,3.07,181.65,181.62,3.1]
[1753043930870,3.07,181.64,181.63,3.1]
[1753043931171,3.07,181.63,181.62,8.6036]
[1753043932968,3.07,181.63,181.62,3.1]
[1753043934372,3.07,181.63,181.62,8.6036]
[1753043939474,2.94,181.62,181.6,8.5539]
[1753043939773,2.94,181.61,181.6,3.05]
[1753043941372,2.94,181.61,181.6,8.5542]
[1753043942578,5.5039,181.62,181.6,8.5542]
[1753043942873,2.94,181.62,181.61,3.05]
[1753043943069,6.13984147,181.71,181.61,5.5039]
[1753043943268,2.94,181.63,181.62,3.05]
[1753043945270,2.94,181.63,181.62,8.5536]
[1753043945469,2.94,181.64,181.62,3.05]
[1753043945673,2.68482077,181.65,181.63,3.05]
[1753043946175,2.94,181.64,181.63,3.05]
[1753043946374,2.94,181.64,181.62,3.05]
[1753043946571,8.4431,181.64,181.62,3.05]
[1753043946782,2.94,181.63,181.62,3.05]
[1753043950376,8.4431,181.64,181.62,3.05]
[1753043950976,2.94,181.63,181.62,3.05]
[1753043952680,8.4433,181.63,181.62,3.05]
[1753043957781,2.94,181.63,181.62,3.05]
[1753043960183,8.4433,181.63,181.62,3.05]
[1753043960384,2.94,181.63,181.62,3.05]
[1753043960984,2.94,181.63,181.62,8.5536]
[1753043961181,2.68482077,181.69,181.62,3.05]
[1753043961485,2.94,181.66,181.62,3.05]
[1753043961685,2.94,181.66,181.65,3.05]
[1753043964286,8.4424,181.66,181.65,3.05]
[1753043964492,2.94,181.66,181.65,3.05]
[1753043968691,8.4424,181.66,181.65,3.05]
[1753043969491,8.4424,181.66,181.64,2.97]
[1753043969799,3.05,181.65,181.64,2.97]
[1753043970291,3.05,181.64,181.62,2.97]
[1753043970489,1.71094266,181.63,181.61,2.97]
[1753043970687,3.05,181.62,181.6,2.97]
[1753043970886,3.05,181.62,181.61,2.97]
[1753043972192,8.5536,181.62,181.61,2.97]
[1753043972391,3.05,181.61,181.6,2.97]
[1753043973193,8.5539,181.61,181.6,2.97]
[1753043973791,3.05,181.61,181.6,2.97]
[1753043974091,3.05,181.61,181.59,2.97]
[1753043974792,5.5038,181.62,181.59,2.97]
[1753043974993,3.05,181.6,181.59,2.97]
[1753043979188,3.05,181.67,181.61,5.5037]
[1753043979395,5.72472887,181.67,181.62,2.97]
[1753043979596,2.67472887,181.67,181.62,2.97]
[1753043979897,3.05,181.63,181.62,2.97]
[1753043980597,8.553,181.65,181.62,8.4736]
[1753043980797,3.05,181.64,181.63,2.97]
[1753043981498,8.553,181.64,181.63,2.97]
[1753043983798,5.5035,181.63,181.6,2.97]
[1753043983998,3.05,181.62,181.6,2.97]
[1753043984196,3.05,181.62,181.59,2.97]
[1753043984797,3.05,181.6,181.59,2.97]
[1753043985397,3.05,181.61,181.59,8.4743]
[1753043985693,3.05,181.61,181.6,2.97]
[1753043986201,3.05,181.61,181.6,8.4742]
[1753043987609,3.05,181.63,181.58,2.97]
[1753043988103,3.05,181.63,181.62,2.97]
[1753043988705,8.5533,181.63,181.62,2.97]
[1753043992508,5.5037,181.62,181.61,2.97]
[1753043992702,2.67472887,181.66,181.6,5.5042]
[1753043992907,2.67472887,181.66,181.62,2.97]
[1753043993108,5.5033,181.64,181.62,2.97]
[1753043993302,3.05,181.63,181.62,2.97]
[1753043993503,3.05,181.63,181.62,8.4737]
[1753043993804,3.05,181.66,181.56,4.62954166]
[1753043994008,3.05,181.67,181.63,2.97]
[1753043994202,3.05,181.67,181.66,2.97]
[1753043994804,3.05,181.72,181.66,2.97]
[1753043995106,3.05,181.69,181.66,2.97]
[1753043995307,3.05,181.7,181.67,2.67472887]
[1753043995507,5.5004,181.73,181.68,2.97]
[1753043995703,3.05,181.72,181.7,2.97]
[1753043996009,3.05,181.73,181.72,2.97]
[1753043996507,3.05,181.73,181.72,8.4706]